fUST/lending_fUST_20240114
["ID","MTS","AMOUNT","RATE_DAILY","PERIOD"]
[311543238,1705209040167,-502.85831635,0.00030136,2]
[311543240,1705209040177,-500.0,0.00030136,2]
[311543241,1705209040185,-503.21825677,0.00030136,2]
[311543242,1705209040194,-500.0,0.00030136,2]
[311543244,1705209040204,-500.0,0.00030136,2]
[311543245,1705209040214,-500.0,0.00030136,2]
[311543246,1705209040223,-500.0,0.00030136,2]
[311543248,1705209040233,-505.14811114,0.00030136,2]
[311543249,1705209040243,-528.67,0.00030136,2]
[311543251,1705209040252,-503.56994745,0.00030136,2]
[311543252,1705209040261,-505.56719072,0.00030136,2]
[311543253,1705209040270,-504.9651415,0.00030136,2]
[311543255,1705209040279,-501.59793179,0.00030136,2]
[311543256,1705209040288,-501.81359818,0.00030136,2]
[311543258,1705209040297,-502.36498599,0.00030136,2]
[311543259,1705209040306,-500.0,0.00030136,2]
[311543260,1705209040315,-500.0,0.00030136,2]
[311543262,1705209040324,-531.44538508,0.00030136,2]
[311543263,1705209040333,-500.0,0.00030136,2]
[311543265,1705209040342,-500.0,0.00030136,2]
[311543266,1705209040351,-211.7942693,0.00030136,2]
[311543314,1705209041450,-359.47244393,0.00030136,2]
[311543315,1705209041459,-500.0,0.00030136,2]
[311543316,1705209041468,-500.0,0.00030136,2]
[311543318,1705209041478,-500.0,0.00030136,2]
[311543319,1705209041487,-256.85865029,0.00030136,2]
[311543817,1705209278626,-150.95471359,0.00034019,120]
[311543818,1705209278654,-159.608457,0.00034521,46]
[311543819,1705209278676,-159.608457,0.00034521,53]
[311543820,1705209278701,-159.608457,0.00034521,61]
[311543821,1705209278723,-159.608457,0.00034521,68]
[311543822,1705209278746,-159.608457,0.00034521,75]
[311543823,1705209278768,-159.608457,0.00034521,83]
[311543824,1705209278790,-159.608457,0.00034521,90]
[311543825,1705209278922,-159.608457,0.00034521,97]
[311543826,1705209278945,-159.608457,0.00034521,105]
[311543827,1705209278968,-159.608457,0.00034521,112]
[311543828,1705209278990,-159.608457,0.00034521,120]
[311543829,1705209279020,-1615.362542,0.00035616,120]
[311543830,1705209279047,-316.0,0.00036,120]
[311543831,1705209279073,-1483.89816289,0.00038,120]
[311543832,1705209279101,-154.95351395,0.0004,120]
[311543833,1705209279125,-2702.77113344,0.0004,120]
[311543834,1705209279148,-322.37131406,0.0004,90]
[311543835,1705209279174,-580572.1809292,0.00040301,60]
[311543836,1705209279196,-396.20479421,0.00040672,120]
[311543837,1705209279220,-3003.20392487,0.00041,90]
[311543838,1705209279243,-1000.0,0.00041,41]
[311543839,1705209279266,-295.91,0.00041124,120]
[311543840,1705209279290,-1500.0,0.00041288,42]
[311543841,1705209279313,-2500.0,0.00041288,42]
[311543842,1705209279337,-1615.362542,0.00041553,120]
[311543843,1705209279359,-1500.0,0.00041973,49]
[311543844,1705209279381,-900.0,0.00042,60]
[311543845,1705209279403,-493.02089011,0.00042,120]
[311543846,1705209279425,-727.1647297,0.00042,120]
[311543847,1705209279454,-1598.62409188,0.000424,120]
[311543848,1705209279476,-1500.0,0.00042658,56]
[311543849,1705209279499,-2500.0,0.00042658,56]
[311543850,1705209279522,-900.0,0.00043,60]
[311543851,1705209279545,-460.0,0.00043133,90]
[311543852,1705209279566,-1500.0,0.00043342,63]
[311543853,1705209279590,-460.0,0.00043496,90]
[311543854,1705209279612,-4139.9,0.00044,60]
[311543855,1705209279635,-1500.0,0.00044027,70]
[311543856,1705209279658,-2500.0,0.00044027,70]
[311543857,1705209279681,-1500.0,0.00044712,77]
[311543858,1705209279703,-171.55692855,0.000449,120]
[311543859,1705209279726,-1000.0,0.000449,120]
[311543860,1705209279748,-20726.59875388,0.0004498,120]
[311543861,1705209279770,-750.0,0.00044999,120]
[311543862,1705209279792,-501.0,0.00045,120]
[311543863,1705209279814,-4651.58720275,0.00045,60]
[311543864,1705209279836,-202.81682075,0.00045,120]
[311543865,1705209279858,-501.0,0.00045,120]
[311543866,1705209279880,-41192.87129727,0.00045,120]
[311543867,1705209279902,-264.64343223,0.00045,120]
[311543868,1705209279924,-500.0,0.00045,120]
[311543869,1705209279946,-288.80187727,0.00045,120]
[311543870,1705209279969,-342.72556655,0.00045,120]
[311543871,1705209279990,-1500.0,0.00045397,84]
[311543872,1705209280012,-2500.0,0.00045397,84]
[311543873,1705209280034,-460.0,0.00045671,90]
[311543874,1705209280057,-170.0,0.00046,90]
[311543875,1705209280079,-1936.0,0.00046082,91]
[311543876,1705209280101,-4936.0,0.00046767,98]
[311543877,1705209280126,-1615.362542,0.00047489,120]
[311543878,1705209280148,-150.0,0.00048,120]
[311543879,1705209280171,-170.0,0.00048109,90]
[311543880,1705209280192,-1000.0,0.00048499,120]
[311543881,1705209280213,-150.0,0.00049,120]
[311543882,1705209280237,-20000.0,0.000499,120]
[311543883,1705209280260,-595.75637601,0.0005,120]
[311543884,1705209280281,-150.0,0.0005,120]
[311543885,1705209280303,-200.0,0.0005,120]
[311543886,1705209280326,-1777.27564102,0.0005,60]
[311543887,1705209280347,-41622.5334673,0.0005,120]
[311543888,1705209280370,-150.0,0.00051,120]
[311543889,1705209280391,-150.0,0.00052,120]
[311543890,1705209280413,-150.0,0.00053,120]
[311543891,1705209280437,-1615.362542,0.00053425,120]
[311543892,1705209280458,-150.0,0.00054,120]
[311543893,1705209281179,250.0,0.00045,120]
[311543897,1705209346877,-74411.06939218,0.00042036,30]
[311543898,1705209346901,-261.79508907,0.00042036,120]
[311543899,1705209346925,-500.0,0.00042036,120]
[311543900,1705209346948,-3919.09081065,0.00042036,120]
[311543901,1705209347087,-867.89694363,0.00042036,120]
[311543902,1705209347111,-3141.851817,0.00042036,30]
[311543903,1705209347133,-522.56934118,0.00042036,120]
[311543904,1705209347154,-472.27992133,0.00042036,120]
[311543905,1705209347178,-523.16207902,0.00042036,120]
[311543906,1705209347200,-411.90478915,0.00042036,120]
[311543907,1705209347221,-659.79693033,0.00042036,30]
[311543908,1705209347243,-816.41026975,0.00042036,120]
[311543909,1705209347265,-893.82152232,0.00042036,120]
[311543910,1705209347286,-1140.33934137,0.00042036,30]
[311543911,1705209347308,-1085.27730706,0.00042036,120]
[311543912,1705209347329,-562.04474491,0.00042036,120]
[311543913,1705209347350,-150.90692403,0.00042036,30]
[311543914,1705209347372,-549.489999,0.00042036,30]
[311543915,1705209347396,-793860.2353333,0.00042036,30]
[311543916,1705209347418,-81400.0,0.00042036,32]
[311543917,1705209347440,-49999.2,0.00042036,120]
[311543918,1705209347464,-171745.04,0.00042036,30]
[311543919,1705209347485,-154.98450055,0.00042036,120]
[311543920,1705209347507,-1578.79554437,0.00042036,120]
[311543921,1705209347530,-150.05447377,0.00042036,30]
[311543922,1705209347551,-35666.270362,0.00042036,35]
[311543923,1705209347573,-452.68365573,0.00042036,35]
[311543924,1705209347595,-11178.99679802,0.00042036,30]
[311543925,1705209347617,-5225.48411235,0.00042036,60]
[311543926,1705209347640,-6000.0,0.00042036,65]
[311543927,1705209347661,-1212.00001212,0.00042036,90]
[311543928,1705209347683,-2000.0,0.00042036,31]
[311543929,1705209347703,-2500.0,0.00042036,32]
[311544017,1705210239914,-442.79286897,0.00027108,2]
[311544019,1705210239923,-3103.22807683,0.00027121,2]
[311544021,1705210239932,-190.3490478,0.00028346,2]
[311544023,1705210239941,-3752.02640613,0.00028387,5]
[311544102,1705210241582,-1247.97359387,0.00028387,5]
[311544103,1705210241592,-247.99640613,0.00028387,3]
[311544113,1705210243451,-154.95351395,0.00027107,4]
[311544114,1705210243461,-1354.3982969,0.00028387,3]
[311544203,1705211432687,-791.49648121,0.00022601,2]
[311544252,1705211438857,-6.68031395,0.00022601,2]
[311544254,1705211438866,-266.94660645,0.00025221,2]
[311544256,1705211438875,-154.9690062,0.00025222,4]
[311544258,1705211438884,-154.9690062,0.00025223,2]
[311544260,1705211438893,-425.2676334,0.00025224,2]
[311544262,1705211438902,-442.79286897,0.00025224,2]
[311544264,1705211438911,-4714.61123434,0.00025227,2]
[311544266,1705211438920,-166.666666,0.00025234,2]
[311544269,1705211438930,-155.25569734,0.00025547,2]
[311544270,1705211438939,-174.241026,0.00025627,2]
[311544272,1705211438949,-193.3158166,0.00025706,2]
[311544275,1705211438961,-178.0443736,0.00025799,2]
[311544277,1705211438970,-214.00646181,0.00026287,2]
[311544278,1705211438979,-289.69806008,0.00027,2]
[311544280,1705211438988,-1112.08388858,0.00027121,2]
[311544282,1705211438997,-198.8089634,0.00027671,2]
[311544285,1705211439007,-198.8089634,0.00027671,2]
[311544287,1705211439016,-198.8089634,0.00027671,2]
[311544289,1705211439025,-198.8089634,0.00027671,2]
[311544291,1705211439034,-200.0,0.00027756,15]
[311544293,1705211439043,-198.0002927,0.00027878,2]
[311544295,1705211439052,-153.2911349,0.00027878,2]
[311544297,1705211439061,-153.7958223,0.00027878,2]
[311544299,1705211439070,-306.0,0.00027878,2]
[311544301,1705211439078,-153.0,0.00027878,2]
[311544303,1705211439087,-198.8089634,0.00027878,2]
[311544304,1705211439096,-198.8089634,0.00027878,2]
[311544306,1705211439105,-153.0,0.00027878,2]
[311544308,1705211439115,-198.8089634,0.00027878,2]
[311544310,1705211439125,-198.8089634,0.00027878,2]
[311544313,1705211439134,-753.57612089,0.00028385,2]
[311544314,1705211439143,-4005.78937176,0.00028385,2]
[311544317,1705211439155,-200.08677798,0.00028385,2]
[311544318,1705211439165,-230.51804778,0.00028385,2]
[311544320,1705211439174,-155.2197997,0.00028385,2]
[311544322,1705211439184,-545.27659827,0.00028385,2]
[311544324,1705211439193,-435.00448924,0.00028385,2]
[311544326,1705211439205,-155.1955236,0.00028385,2]
[311544328,1705211439215,-4956.38990921,0.00028387,3]
[311544330,1705211439224,-1498.0125382,0.00028387,3]
[311544332,1705211439233,-1823.10005026,0.00028387,2]
[311544334,1705211439242,-4679.7260346,0.00028387,3]
[311544336,1705211439251,-261.12680454,0.00028387,2]
[311544339,1705211439261,-3316.01553422,0.00028387,2]
[311544341,1705211439270,-305.18841791,0.00028387,2]
[311544343,1705211439280,-5000.0,0.00028387,5]
[311544344,1705211439289,-290.61609522,0.00028387,2]
[311544347,1705211439298,-2288.08668849,0.0002839,3]
[311544348,1705211439308,-198.8089634,0.00028493,2]
[311544350,1705211439317,-198.8089634,0.00028493,2]
[311544352,1705211439326,-198.8089634,0.00028493,2]
[311544354,1705211439335,-198.8089634,0.00028493,2]
[311544356,1705211439345,-198.8089634,0.00028493,2]
[311544358,1705211439355,-198.8089634,0.00028493,2]
[311544360,1705211439364,-198.8089634,0.00028493,2]
[311544362,1705211439373,-198.8089634,0.00028493,2]
[311544364,1705211439383,-198.8089634,0.00028493,2]
[311544366,1705211439392,-397.6179268,0.00028493,2]
[311544368,1705211439401,-397.6179268,0.00028493,2]
[311544370,1705211439410,-397.6179268,0.00028493,2]
[311544372,1705211439419,-397.6179268,0.00028493,2]
[311544374,1705211439428,-397.6179268,0.00028493,2]
[311544376,1705211439438,-198.8089634,0.00028493,2]
[311544378,1705211439447,-198.8089634,0.00028493,2]
[311544380,1705211439456,-275.980348,0.00028493,2]
[311544382,1705211439465,-198.8089634,0.00028556,2]
[311544384,1705211439474,-198.8089634,0.00028556,2]
[311544386,1705211439483,-198.8089634,0.00028556,2]
[311544388,1705211439492,-198.8089634,0.00028556,2]
[311544390,1705211439501,-153.0,0.00028578,2]
[311544392,1705211439510,-306.0,0.00028578,2]
[311544394,1705211439519,-153.0,0.00028578,2]
[311544396,1705211439528,-397.6179268,0.00028578,2]
[311544398,1705211439538,-198.8089634,0.00028756,2]
[311544400,1705211439546,-219.69226211,0.00028806,4]
[311544402,1705211439555,-2305.37797556,0.00029,2]
[311544404,1705211439564,-155.0,0.00029136,2]
[311544406,1705211439573,-258.65524163,0.00029351,2]
[311544408,1705211439584,-256.25845655,0.00029351,2]
[311544410,1705211439593,-1000.0,0.00029351,7]
[311544412,1705211439602,-151.55762843,0.0002969,2]
[311544414,1705211439611,-155.14831659,0.0003,4]
[311544416,1705211439620,-486.36237481,0.0003,4]
[311544418,1705211439629,-687.21028914,0.0003,4]
[311544420,1705211439638,-151.55762844,0.00030011,7]
[311544422,1705211439647,-50917.39146131,0.00030035,2]
[311545113,1705211446739,-198.8089634,0.00027671,2]
[311545116,1705211446749,-531.00250592,0.00030035,2]
[311545122,1705211446796,-40077.44021277,0.00030035,2]
[311545124,1705211446805,-24133.57877779,0.00030036,2]
[311545126,1705211446814,-4219.85,0.00030125,3]
[311545128,1705211446824,-155.2340082,0.00030134,4]
[311545130,1705211446833,-155.38396562,0.00030134,2]
[311545132,1705211446842,-1195.46446057,0.00030135,4]
[311545134,1705211446851,-677.18765749,0.00030135,4]
[311545136,1705211446861,-644.31,0.00030135,2]
[311545138,1705211446870,-500.0,0.00030136,2]
[311545140,1705211446879,-500.0,0.00030136,2]
[311545142,1705211446888,-500.0,0.00030136,2]
[311545144,1705211446896,-500.0,0.00030136,2]
[311545146,1705211446905,-500.0,0.00030136,2]
[311545148,1705211446914,-504.14799284,0.00030136,2]
[311545150,1705211446923,-150.0,0.00030136,2]
[311545152,1705211446932,-500.0,0.00030136,2]
[311545154,1705211446941,-564.81559525,0.00030136,2]
[311545155,1705211446950,-502.51187316,0.00030136,2]
[311545156,1705211446961,-500.0,0.00030136,2]
[311545157,1705211446969,-500.0,0.00030136,2]
[311545158,1705211446978,-500.0,0.00030136,2]
[311545159,1705211446987,-500.0,0.00030136,2]
[311545160,1705211446996,-500.0,0.00030136,2]
[311545161,1705211447006,-503.3382649,0.00030136,2]
[311545162,1705211447015,-1000.0,0.00030136,2]
[311545163,1705211447024,-500.0,0.00030136,2]
[311545164,1705211447033,-500.0,0.00030136,2]
[311545165,1705211447042,-500.0,0.00030136,2]
[311545166,1705211447051,-500.0,0.00030136,2]
[311545167,1705211447060,-500.0,0.00030136,2]
[311545168,1705211447069,-505.87450352,0.00030136,2]
[311545169,1705211447078,-501.7644849,0.00030136,2]
[311545170,1705211447091,-500.0,0.00030136,2]
[311545171,1705211447100,-500.0,0.00030136,2]
[311545172,1705211447109,-500.0,0.00030136,2]
[311545173,1705211447118,-500.0,0.00030136,2]
[311545174,1705211447127,-500.0,0.00030136,2]
[311545175,1705211447136,-500.0,0.00030136,2]
[311545176,1705211447145,-500.0,0.00030136,2]
[311545177,1705211447156,-500.0,0.00030136,2]
[311545178,1705211447166,-500.0,0.00030136,2]
[311545179,1705211447175,-534.24860019,0.00030136,2]
[311545180,1705211447184,-500.0,0.00030136,2]
[311545181,1705211447194,-500.0,0.00030136,2]
[311545182,1705211447203,-223.30147502,0.00030136,2]
[311545183,1705211447212,-211.7942693,0.00030136,2]
[311545185,1705211447221,-500.0,0.00030136,2]
[311545187,1705211447230,-500.0,0.00030136,2]
[311545189,1705211447240,-500.0,0.00030136,2]
[311545191,1705211447249,-500.0,0.00030136,2]
[311545192,1705211447258,-500.0,0.00030136,2]
[311545194,1705211447267,-500.0,0.00030136,2]
[311545196,1705211447277,-500.0,0.00030136,2]
[311545198,1705211447286,-500.0,0.00030136,2]
[311545200,1705211447295,-500.0,0.00030136,2]
[311545202,1705211447303,-500.0,0.00030136,2]
[311545204,1705211447312,-502.96832029,0.00030136,2]
[311545206,1705211447320,-566.47059426,0.00030136,2]
[311545208,1705211447329,-500.0,0.00030136,2]
[311545210,1705211447338,-500.0,0.00030136,2]
[311545212,1705211447347,-500.0,0.00030136,2]
[311545213,1705211447357,-500.0,0.00030136,2]
[311545215,1705211447366,-500.0,0.00030136,2]
[311545217,1705211447376,-500.0,0.00030136,2]
[311545219,1705211447385,-500.0,0.00030136,2]
[311545221,1705211447394,-505.56549688,0.00030136,2]
[311545223,1705211447403,-503.11562979,0.00030136,2]
[311545225,1705211447412,-500.0,0.00030136,2]
[311545227,1705211447422,-500.0,0.00030136,2]
[311545229,1705211447431,-619.53742458,0.00030136,2]
[311545231,1705211447440,-505.12210664,0.00030136,2]
[311545233,1705211447449,-550.0,0.00030136,2]
[311545235,1705211447459,-500.0,0.00030136,2]
[311545237,1705211447469,-509.39793533,0.00030136,2]
[311545239,1705211447478,-500.0,0.00030136,2]
[311545241,1705211447487,-500.0,0.00030136,2]
[311545243,1705211447496,-500.0,0.00030136,2]
[311545245,1705211447505,-501.78617306,0.00030136,2]
[311545247,1705211447515,-501.16140036,0.00030136,2]
[311545249,1705211447523,-500.0,0.00030136,2]
[311545251,1705211447532,-500.0,0.00030136,2]
[311545253,1705211447542,-577.60757592,0.00030136,2]
[311545255,1705211447550,-525.8177469,0.00030136,2]
[311545256,1705211447559,-534.22898724,0.00030136,2]
[311545258,1705211447568,-500.0,0.00030136,2]
[311545260,1705211447579,-502.34300527,0.00030136,2]
[311545262,1705211447588,-500.0,0.00030136,2]
[311545264,1705211447596,-501.7927214,0.00030136,2]
[311545266,1705211447605,-500.0,0.00030136,2]
[311545268,1705211447614,-500.0,0.00030136,2]
[311545270,1705211447624,-500.42283029,0.00030136,2]
[311545272,1705211447634,-500.0,0.00030136,2]
[311545273,1705211447643,-503.61558939,0.00030136,2]
[311545275,1705211447652,-500.0,0.00030136,2]
[311545277,1705211447661,-515.5027129,0.00030136,2]
[311545279,1705211447670,-455.60495024,0.00030136,2]
[311545281,1705211447679,-532.46959026,0.00030136,2]
[311545283,1705211447689,-501.67031792,0.00030136,2]
[311545285,1705211447698,-500.0,0.00030136,2]
[311545287,1705211447707,-501.7758194,0.00030136,2]
[311545288,1705211447716,-500.0,0.00030136,2]
[311545289,1705211447725,-551.66,0.00030136,2]
[311545290,1705211447734,-504.54980695,0.00030136,2]
[311545291,1705211447743,-500.0,0.00030136,2]
[311545292,1705211447752,-500.0,0.00030136,2]
[311545293,1705211447761,-502.84042653,0.00030136,2]
[311545294,1705211447770,-501.03600058,0.00030136,2]
[311545295,1705211447779,-500.0,0.00030136,2]
[311545296,1705211447788,-500.0,0.00030136,2]
[311545297,1705211447798,-602.72039454,0.00030136,2]
[311545298,1705211447807,-366.94048723,0.00030136,2]
[311545299,1705211447816,-500.0,0.00030136,2]
[311545300,1705211447826,-500.0,0.00030136,2]
[311545301,1705211447835,-500.0,0.00030136,2]
[311545302,1705211447844,-500.0,0.00030136,2]
[311545303,1705211447854,-507.64365218,0.00030136,2]
[311545304,1705211447863,-500.0,0.00030136,2]
[311545305,1705211447872,-500.0,0.00030136,2]
[311545306,1705211447881,-500.0,0.00030136,2]
[311545307,1705211447890,-500.0,0.00030136,2]
[311545308,1705211447899,-506.04398539,0.00030136,2]
[311545309,1705211447908,-500.0,0.00030136,2]
[311545310,1705211447919,-500.0,0.00030136,2]
[311545311,1705211447928,-500.0,0.00030136,2]
[311545312,1705211447938,-500.0,0.00030136,2]
[311545313,1705211447947,-308.95333986,0.00030136,2]
[311545314,1705211447957,-500.0,0.00030136,2]
[311545315,1705211447968,-500.0,0.00030136,2]
[311545316,1705211447977,-500.0,0.00030136,2]
[311545317,1705211447986,-500.0,0.00030136,2]
[311545318,1705211447996,-501.96851689,0.00030136,2]
[311545319,1705211448005,-500.0,0.00030136,2]
[311545320,1705211448014,-500.0,0.00030136,2]
[311545321,1705211448024,-564.21902284,0.00030136,2]
[311545322,1705211448034,-500.0,0.00030136,2]
[311545323,1705211448043,-1009.76,0.00030136,2]
[311545324,1705211448052,-500.0,0.00030136,2]
[311545325,1705211448061,-500.0,0.00030136,2]
[311545326,1705211448070,-489.49394302,0.00030136,2]
[311545327,1705211448078,-500.0,0.00030136,2]
[311545328,1705211448088,-500.0,0.00030136,2]
[311545329,1705211448096,-500.0,0.00030136,2]
[311545330,1705211448105,-500.0,0.00030136,2]
[311545331,1705211448113,-500.0,0.00030136,2]
[311545332,1705211448122,-500.0,0.00030136,2]
[311545333,1705211448132,-198.01866133,0.00030136,2]
[311545334,1705211448140,-500.0,0.00030136,2]
[311545335,1705211448149,-310.91729699,0.00030136,2]
[311545336,1705211448159,-500.0,0.00030136,2]
[311545337,1705211448168,-500.0,0.00030136,2]
[311545338,1705211448177,-500.0,0.00030136,2]
[311545339,1705211448187,-500.0,0.00030136,2]
[311545340,1705211448196,-500.0,0.00030136,2]
[311545341,1705211448206,-346.64960511,0.00030136,2]
[311545342,1705211448215,-500.0,0.00030136,2]
[311545343,1705211448224,-506.61890384,0.00030136,2]
[311545344,1705211448233,-506.60600586,0.00030136,2]
[311545345,1705211448242,-500.0,0.00030136,2]
[311545346,1705211448252,-500.0,0.00030136,2]
[311545347,1705211448261,-500.0,0.00030136,2]
[311545348,1705211448270,-500.0,0.00030136,2]
[311545349,1705211448279,-500.0,0.00030136,2]
[311545350,1705211448288,-500.0,0.00030136,2]
[311545351,1705211448297,-500.0,0.00030136,2]
[311545352,1705211448306,-500.0,0.00030136,2]
[311545353,1705211448315,-500.0,0.00030136,2]
[311545354,1705211448325,-500.0,0.00030136,2]
[311545355,1705211448334,-500.0,0.00030136,2]
[311545356,1705211448343,-500.0,0.00030136,2]
[311545357,1705211448353,-588.06,0.00030136,2]
[311545358,1705211448363,-509.43458407,0.00030136,2]
[311545359,1705211448372,-500.0,0.00030136,2]
[311545360,1705211448381,-500.0,0.00030136,2]
[311545361,1705211448390,-508.43949603,0.00030136,2]
[311545362,1705211448400,-501.62544627,0.00030136,2]
[311545363,1705211448409,-500.0,0.00030136,2]
[311545364,1705211448418,-500.0,0.00030136,2]
[311545365,1705211448427,-500.0,0.00030136,2]
[311545366,1705211448436,-500.0,0.00030136,2]
[311545367,1705211448445,-505.04437629,0.00030136,2]
[311545368,1705211448456,-500.0,0.00030136,2]
[311545369,1705211448465,-500.0,0.00030136,2]
[311545370,1705211448474,-500.0,0.00030136,2]
[311545371,1705211448484,-500.0,0.00030136,2]
[311545372,1705211448493,-500.0,0.00030136,2]
[311545373,1705211448501,-500.0,0.00030136,2]
[311545374,1705211448510,-3379.97,0.00030136,2]
[311545375,1705211448519,-507.54880534,0.00030136,2]
[311545376,1705211448528,-502.22175438,0.00030136,2]
[311545377,1705211448537,-500.0,0.00030136,2]
[311545378,1705211448548,-688.1402264,0.00030136,2]
[311545379,1705211448557,-500.0,0.00030136,2]
[311545380,1705211448566,-500.0,0.00030136,2]
[311545381,1705211448575,-500.0,0.00030136,2]
[311545382,1705211448584,-501.80968584,0.00030136,2]
[311545383,1705211448593,-500.0,0.00030136,2]
[311545384,1705211448602,-501.80714204,0.00030136,2]
[311545385,1705211448611,-500.0,0.00030136,2]
[311545386,1705211448620,-500.0,0.00030136,2]
[311545387,1705211448629,-183.47243345,0.00030136,2]
[311545388,1705211448639,-500.0,0.00030136,2]
[311545389,1705211448648,-500.0,0.00030136,2]
[311545390,1705211448657,-501.42415586,0.00030136,2]
[311545391,1705211448668,-500.0,0.00030136,2]
[311545392,1705211448677,-471.10965015,0.00030136,2]
[311545393,1705211448686,-505.9523721,0.00030136,2]
[311545394,1705211448695,-1285.99,0.00030136,2]
[311545395,1705211448704,-512.59062241,0.00030136,2]
[311545396,1705211448713,-500.0,0.00030136,2]
[311545397,1705211448723,-500.0,0.00030136,2]
[311545398,1705211448732,-961.78,0.00030136,2]
[311545399,1705211448743,-501.51539704,0.00030136,2]
[311545400,1705211448752,-600.15,0.00030136,2]
[311545401,1705211448762,-500.0,0.00030136,2]
[311545402,1705211448772,-502.39685917,0.00030136,2]
[311545403,1705211448782,-500.0,0.00030136,2]
[311545404,1705211448791,-500.0,0.00030136,2]
[311545405,1705211448802,-500.0,0.00030136,2]
[311545406,1705211448811,-500.0,0.00030136,2]
[311545407,1705211448820,-500.0,0.00030136,2]
[311545408,1705211448829,-500.0,0.00030136,2]
[311545409,1705211448840,-500.0,0.00030136,2]
[311545410,1705211448849,-5038.9,0.00030136,2]
[311545411,1705211448859,-500.0,0.00030136,2]
[311545412,1705211448946,-502.36498599,0.00030136,2]
[311545413,1705211448956,-500.0,0.00030136,2]
[311545414,1705211448965,-500.0,0.00030136,2]
[311545415,1705211448974,-500.0,0.00030136,2]
[311545416,1705211448983,-503.3873243,0.00030136,2]
[311545417,1705211448993,-500.0,0.00030136,2]
[311545418,1705211449002,-500.0,0.00030136,2]
[311545419,1705211449012,-223.25,0.00030252,2]
[311545420,1705211449021,-150.0,0.00030252,2]
[311545421,1705211449030,-150.164,0.00030252,2]
[311545422,1705211449040,-6840.62389071,0.0003031,3]
[311547871,1705212638035,-154.9690062,0.00026998,4]
[311547873,1705212638045,-425.2676334,0.00026999,2]
[311547875,1705212638054,-2066.59107405,0.00027769,2]
[311548010,1705212642914,-546.31142435,0.00027769,2]
[311548011,1705212642926,-150.0,0.00028036,2]
[311548012,1705212642938,-1857.22334265,0.00028387,2]
[311548013,1705212642952,-389.6414446,0.00028387,2]
[311548014,1705212642963,-410.63820768,0.00028387,2]
[311548015,1705212642974,-970.97313802,0.00028403,3]
[311548203,1705213780878,-245.0,0.00021654,2]
[311548204,1705213781030,-5.0,0.00021654,2]
[311548206,1705213795801,-262.95933006,0.00021654,2]
[311548208,1705213796063,-5.36651694,0.00021654,2]
[311548267,1705213832061,-166.6666677,0.00021918,2]
[311548269,1705213832070,-154.9690062,0.00021964,4]
[311548271,1705213832080,-220.09715845,0.00021964,2]
[311548273,1705213832092,-3260.35820149,0.00021964,2]
[311548275,1705213832101,-677.43954104,0.00021965,2]
[311548277,1705213832110,-294.97980643,0.00022,4]
[311548280,1705213832120,-137.63973705,0.00022407,2]
[311548282,1705213832133,-38.50296195,0.00022407,2]
[311548284,1705213832143,-2782.1753955,0.00022499,2]
[311548339,1705213838271,-8687.5217598,0.00022499,2]
[311548341,1705213838280,-24900.0,0.0002371,2]
[311548343,1705213838290,-200.0,0.00024748,7]
[311548345,1705213838299,-174.616607,0.0002613,2]
[311548347,1705213838308,-230.26543288,0.00026303,2]
[311548349,1705213838318,-976.30954437,0.00026998,2]
[311548351,1705213838327,-5950.25473392,0.00026998,2]
[311548353,1705213838336,-289.69806008,0.00027,2]
[311548355,1705213838345,-152.31739519,0.00027838,2]
[311548357,1705213838354,-3516.54,0.00028393,3]